[Event "Live Chess"]
[Site "Chess.com"]
[Date "2024.06.01"]
[Round "-"]
[White "grillage"]
[Black "StoreySniper"]
[Result "0-1"]
[WhiteElo "1872"]
[BlackElo "2534"]
[TimeControl "300"]
[EndTime "15:39:56 PDT"]
[Termination "StoreySniper won by resignation"]

1. d4 {[%clk 0:04:57.6]} 1... c5 {[%clk 0:04:57.4]} 2. d5 {[%clk 0:04:54.1]}
2... f5 {[%clk 0:04:56.5]} 3. Nc3 {[%clk 0:04:47.3]} 3... g6 {[%clk 0:04:53.9]}
4. Bg5 {[%clk 0:04:45.8]} 4... d6 {[%clk 0:04:51.9]} 5. e4 {[%clk 0:04:44.5]}
5... Bg7 {[%clk 0:04:49.1]} 6. Bb5+ {[%clk 0:04:32.8]} 6... Bd7 {[%clk 0:04:32]}
7. a4 {[%clk 0:04:30.7]} 7... Bxc3+ {[%clk 0:04:25.5]} 8. bxc3 {[%clk 0:04:29]}
8... fxe4 {[%clk 0:04:23.8]} 9. Ne2 {[%clk 0:04:24.3]} 9... h6 {[%clk
0:04:20.1]} 10. Bh4 {[%clk 0:04:16.5]} 10... g5 {[%clk 0:04:17.1]} 11. Bg3
{[%clk 0:04:15.7]} 11... Nf6 {[%clk 0:04:15.6]} 12. h4 {[%clk 0:04:09.1]} 12...
g4 {[%clk 0:04:02]} 13. h5 {[%clk 0:04:06.2]} 13... Qa5 {[%clk 0:04:00.4]} 14.
Bxd7+ {[%clk 0:03:59.9]} 14... Nbxd7 {[%clk 0:03:58.8]} 15. Qd2 {[%clk
0:03:56.9]} 15... O-O-O {[%clk 0:03:54.9]} 16. c4 {[%clk 0:03:47.6]} 16... Qxd2+
{[%clk 0:03:52.9]} 17. Kxd2 {[%clk 0:03:46.5]} 17... Rdg8 {[%clk 0:03:46.9]} 18.
Nc3 {[%clk 0:03:44.2]} 18... Rg5 {[%clk 0:03:43.4]} 19. Ke3 {[%clk 0:03:40.5]}
19... Nb6 {[%clk 0:03:34.4]} 20. Nxe4 {[%clk 0:03:21.4]} 20... Nxc4+ {[%clk
0:03:32.2]} 21. Kd3 {[%clk 0:03:20.8]} 21... Nb2+ {[%clk 0:03:25]} 22. Ke3
{[%clk 0:03:17.8]} 22... Nxd5+ {[%clk 0:03:23.4]} 23. Ke2 {[%clk 0:03:09.9]}
23... Rf5 {[%clk 0:03:17.3]} 24. Bxd6 {[%clk 0:03:06.7]} 24... Nc3+ {[%clk
0:03:02.8]} 25. Nxc3 {[%clk 0:03:04.3]} 25... exd6 {[%clk 0:03:02.2]} 26. Rh4
{[%clk 0:02:53.2]} 26... Re8+ {[%clk 0:02:56.8]} 27. Kf1 {[%clk 0:02:52.1]}
27... Nc4 {[%clk 0:02:50.7]} 28. Rxg4 {[%clk 0:02:46.6]} 28... Ne3+ {[%clk
0:02:49.7]} 0-1

[Event "Live Chess"]
[Site "Chess.com"]
[Date "2024.06.01"]
[Round "-"]
[White "TigerTank70"]
[Black "vincents82"]
[Result "1-0"]
[WhiteElo "2235"]
[BlackElo "2044"]
[TimeControl "300"]
[EndTime "15:39:59 PDT"]
[Termination "TigerTank70 won by resignation"]

1. e4 {[%clk 0:04:57.7]} 1... d5 {[%clk 0:04:56.3]} 2. exd5 {[%clk 0:04:55.1]}
2... Qxd5 {[%clk 0:04:55.6]} 3. d4 {[%clk 0:04:55]} 3... e5 {[%clk 0:04:54.4]}
4. dxe5 {[%clk 0:04:51.3]} 4... Qxd1+ {[%clk 0:04:53.1]} 5. Kxd1 {[%clk
0:04:51.2]} 5... Nc6 {[%clk 0:04:52.5]} 6. Bb5 {[%clk 0:04:47.8]} 6... Ne7
{[%clk 0:04:47.6]} 7. Nf3 {[%clk 0:04:46.3]} 7... a6 {[%clk 0:04:47]} 8. Ba4
{[%clk 0:04:37.9]} 8... b5 {[%clk 0:04:44.5]} 9. Bb3 {[%clk 0:04:37]} 9... Bg4
{[%clk 0:04:43.7]} 10. Bf4 {[%clk 0:04:32.1]} 10... O-O-O+ {[%clk 0:04:40.4]}
11. Nd2 {[%clk 0:04:31.2]} 11... Ng6 {[%clk 0:04:39]} 12. Bg3 {[%clk 0:04:24]}
12... Ngxe5 {[%clk 0:04:32.5]} 13. Kc1 {[%clk 0:04:20.2]} 13... Nxf3 {[%clk
0:04:29.5]} 14. Nxf3 {[%clk 0:04:18.8]} 14... Bxf3 {[%clk 0:04:27.9]} 15. gxf3
{[%clk 0:04:18.7]} 15... f6 {[%clk 0:04:25.5]} 16. Be6+ {[%clk 0:04:15.7]} 16...
Kb7 {[%clk 0:04:22]} 17. c3 {[%clk 0:04:14.7]} 17... Bd6 {[%clk 0:04:20.7]} 18.
Kc2 {[%clk 0:04:12.9]} 18... Rhe8 {[%clk 0:04:18.4]} 19. Rae1 {[%clk 0:04:06.1]}
19... Re7 {[%clk 0:04:14.5]} 20. Bf5 {[%clk 0:04:02.7]} 20... Rde8 {[%clk
0:04:12.7]} 21. Rxe7 {[%clk 0:04:00.1]} 21... Rxe7 {[%clk 0:04:11.9]} 22. Bxh7
{[%clk 0:03:57.6]} 22... Re2+ {[%clk 0:03:55.4]} 23. Kc1 {[%clk 0:03:56.1]}
23... Ne5 {[%clk 0:03:46.7]} 24. Rd1 {[%clk 0:03:48.7]} 24... Nc4 {[%clk
0:03:36.3]} 25. Be4+ {[%clk 0:03:45.2]} 25... Kb6 {[%clk 0:03:34.1]} 26. b3
{[%clk 0:03:36.6]} 26... Ne5 {[%clk 0:03:27]} 27. Rd2 {[%clk 0:03:25.2]} 27...
Rxd2 {[%clk 0:03:00.2]} 28. Kxd2 {[%clk 0:03:25.1]} 28... g5 {[%clk 0:02:59.4]}
29. f4 {[%clk 0:03:00.9]} 29... Nd7 {[%clk 0:02:46.2]} 30. fxg5 {[%clk
0:02:57.6]} 30... fxg5 {[%clk 0:02:38.9]} 31. Ke3 {[%clk 0:02:33.7]} 31... Ne5
{[%clk 0:02:25.4]} 32. h3 {[%clk 0:02:24.1]} 32... c5 {[%clk 0:02:21.7]} 33. Bd5
{[%clk 0:02:16.2]} 33... a5 {[%clk 0:02:19.3]} 34. Ke4 {[%clk 0:02:13.9]} 1-0

[Event "Live Chess"]
[Site "Chess.com"]
[Date "2024.06.01"]
[Round "-"]
[White "Yegorych"]
[Black "jk0110"]
[Result "1-0"]
[WhiteElo "1581"]
[BlackElo "1230"]
[TimeControl "300"]
[EndTime "15:40:48 PDT"]
[Termination "Yegorych won on time"]

1. d4 {[%clk 0:04:56]} 1... Nf6 {[%clk 0:04:57.8]} 2. c4 {[%clk 0:04:54.6]} 2...
e5 {[%clk 0:04:56]} 3. dxe5 {[%clk 0:04:51.8]} 3... Ne4 {[%clk 0:04:54.7]} 4.
Nf3 {[%clk 0:04:38.9]} 4... Bb4+ {[%clk 0:04:51.1]} 5. Bd2 {[%clk 0:04:36]} 5...
Nxd2 {[%clk 0:04:45.2]} 6. Nbxd2 {[%clk 0:04:33.7]} 6... Nc6 {[%clk 0:04:42.3]}
7. e3 {[%clk 0:04:30]} 7... O-O {[%clk 0:04:33.3]} 8. Be2 {[%clk 0:04:28]} 8...
d6 {[%clk 0:04:23.7]} 9. exd6 {[%clk 0:04:19.1]} 9... Qxd6 {[%clk 0:04:21]} 10.
O-O {[%clk 0:04:14.4]} 10... Bg4 {[%clk 0:04:16.6]} 11. Ne4 {[%clk 0:04:08.6]}
11... Qg6 {[%clk 0:04:03]} 12. Ng3 {[%clk 0:04:02.3]} 12... Rad8 {[%clk
0:03:51]} 13. Qb3 {[%clk 0:03:53.5]} 13... Bd6 {[%clk 0:03:45.7]} 14. Rfd1
{[%clk 0:03:38.5]} 14... Bxg3 {[%clk 0:03:13.1]} 15. hxg3 {[%clk 0:03:38.4]}
15... Bxf3 {[%clk 0:02:52.1]} 16. Bxf3 {[%clk 0:03:38.3]} 16... Ne5 {[%clk
0:02:50]} 17. Qxb7 {[%clk 0:03:25.3]} 17... Rb8 {[%clk 0:02:41.6]} 18. Qxc7
{[%clk 0:03:22.7]} 18... Nxf3+ {[%clk 0:02:34.3]} 19. gxf3 {[%clk 0:03:20.3]}
19... Rxb2 {[%clk 0:02:32.7]} 20. Rd8 {[%clk 0:03:11.3]} 20... Rb1+ {[%clk
0:01:52.3]} 21. Rxb1 {[%clk 0:03:08.5]} 21... Qxb1+ {[%clk 0:01:49.1]} 22. Kg2
{[%clk 0:03:08.4]} 22... Qb4 {[%clk 0:01:38.9]} 23. Qc8 {[%clk 0:02:56.3]} 23...
Qe7 {[%clk 0:01:11.3]} 24. Rxf8+ {[%clk 0:02:52.1]} 24... Qxf8 {[%clk
0:01:09.8]} 25. Qxf8+ {[%clk 0:02:52]} 25... Kxf8 {[%clk 0:01:08.8]} 26. f4
{[%clk 0:02:49.1]} 26... Ke7 {[%clk 0:01:07.6]} 27. Kf3 {[%clk 0:02:47.7]} 27...
Kd6 {[%clk 0:01:04.8]} 28. Ke4 {[%clk 0:02:46.5]} 28... g6 {[%clk 0:00:59.4]}
29. g4 {[%clk 0:02:35.9]} 29... Kc5 {[%clk 0:00:55.2]} 30. g5 {[%clk 0:02:33.2]}
30... Kxc4 {[%clk 0:00:52]} 31. f5 {[%clk 0:02:29]} 31... Kc3 {[%clk 0:00:48.5]}
32. fxg6 {[%clk 0:02:24.3]} 32... hxg6 {[%clk 0:00:46.4]} 33. f4 {[%clk
0:02:20.7]} 33... Kb2 {[%clk 0:00:45.3]} 34. f5 {[%clk 0:02:19.6]} 34... Kxa2
{[%clk 0:00:44.3]} 35. fxg6 {[%clk 0:02:17]} 35... fxg6 {[%clk 0:00:43.2]} 36.
Ke5 {[%clk 0:02:15.8]} 36... a5 {[%clk 0:00:40.6]} 37. Kf6 {[%clk 0:02:15.7]}
37... Kb3 {[%clk 0:00:38.2]} 38. Kxg6 {[%clk 0:02:15.3]} 38... a4 {[%clk
0:00:37.4]} 39. Kf7 {[%clk 0:02:14.6]} 39... a3 {[%clk 0:00:36.6]} 40. g6 {[%clk
0:02:14]} 40... a2 {[%clk 0:00:35.8]} 41. g7 {[%clk 0:02:12.6]} 41... a1=Q
{[%clk 0:00:34.9]} 42. g8=Q {[%clk 0:02:10.6]} 42... Qa7+ {[%clk 0:00:30.8]} 43.
Kg6+ {[%clk 0:02:03.4]} 43... Kc3 {[%clk 0:00:26]} 44. Qe6 {[%clk 0:01:58.1]}
44... Qb7 {[%clk 0:00:15.6]} 45. Qe5+ {[%clk 0:01:53.1]} 45... Kd2 {[%clk
0:00:11.8]} 46. Qd4+ {[%clk 0:01:51.7]} 46... Ke2 {[%clk 0:00:09.5]} 47. e4
{[%clk 0:01:48]} 47... Qc6+ {[%clk 0:00:05]} 48. Kg5 {[%clk 0:01:42]} 48... Qb5+
{[%clk 0:00:01.5]} 49. Kf4 {[%clk 0:01:36]} 1-0

[Event "Live Chess"]
[Site "Chess.com"]
[Date "2024.06.01"]
[Round "-"]
[White "WelshTiger"]
[Black "NottheBishopSacrifice"]
[Result "0-1"]
[WhiteElo "2485"]
[BlackElo "2318"]
[TimeControl "300"]
[EndTime "15:40:49 PDT"]
[Termination "NottheBishopSacrifice won by resignation"]

1. e4 {[%clk 0:04:57]} 1... c6 {[%clk 0:04:57.2]} 2. d4 {[%clk 0:04:55.8]} 2...
d5 {[%clk 0:04:56.9]} 3. e5 {[%clk 0:04:54.2]} 3... c5 {[%clk 0:04:56.2]} 4.
dxc5 {[%clk 0:04:52.9]} 4... e6 {[%clk 0:04:55.1]} 5. Be3 {[%clk 0:04:51.5]}
5... Nd7 {[%clk 0:04:53.2]} 6. f4 {[%clk 0:04:50.4]} 6... Bxc5 {[%clk
0:04:50.6]} 7. Bxc5 {[%clk 0:04:47.3]} 7... Nxc5 {[%clk 0:04:50.5]} 8. Nf3
{[%clk 0:04:44.3]} 8... Ne7 {[%clk 0:04:46.7]} 9. Bd3 {[%clk 0:04:43.1]} 9...
Qb6 {[%clk 0:04:45.2]} 10. b3 {[%clk 0:04:36]} 10... Qb4+ {[%clk 0:04:41.9]} 11.
Qd2 {[%clk 0:04:33.5]} 11... Qxd2+ {[%clk 0:04:33.8]} 12. Kxd2 {[%clk
0:04:18.4]} 12... Bd7 {[%clk 0:04:30.8]} 13. Nc3 {[%clk 0:04:15.1]} 13... Bc6
{[%clk 0:04:29]} 14. Nd4 {[%clk 0:04:09.9]} 14... O-O-O {[%clk 0:04:23.9]} 15.
Nce2 {[%clk 0:04:08.1]} 15... a6 {[%clk 0:04:09]} 16. Ke3 {[%clk 0:04:06.9]}
16... g6 {[%clk 0:04:02.9]} 17. Rac1 {[%clk 0:04:05.1]} 17... Kb8 {[%clk
0:04:01.1]} 18. Rhd1 {[%clk 0:04:01.7]} 18... h5 {[%clk 0:03:58.8]} 19. c3
{[%clk 0:03:45.1]} 19... Rhg8 {[%clk 0:03:52.5]} 20. h4 {[%clk 0:03:41.2]} 20...
Nf5+ {[%clk 0:03:40]} 21. Nxf5 {[%clk 0:03:18.8]} 21... gxf5 {[%clk 0:03:39.9]}
22. g3 {[%clk 0:03:15]} 22... Bb5 {[%clk 0:03:33.8]} 23. Bxb5 {[%clk 0:02:58.2]}
23... axb5 {[%clk 0:03:31.4]} 24. Kf3 {[%clk 0:02:08.2]} 24... Ne4 {[%clk
0:03:26.8]} 25. Rd4 {[%clk 0:02:03.3]} 25... Rc8 {[%clk 0:03:23.5]} 26. c4
{[%clk 0:02:02.3]} 26... bxc4 {[%clk 0:03:19.8]} 27. bxc4 {[%clk 0:02:01.6]}
27... dxc4 {[%clk 0:03:18.9]} 28. Rcxc4 {[%clk 0:02:00.2]} 28... Rxc4 {[%clk
0:03:17.1]} 29. Rxc4 {[%clk 0:01:58.9]} 29... Nd2+ {[%clk 0:03:16.7]} 0-1

[Event "Live Chess"]
[Site "Chess.com"]
[Date "2024.06.01"]
[Round "-"]
[White "Plato_77"]
[Black "updatedopenings2024"]
[Result "0-1"]
[WhiteElo "1301"]
[BlackElo "1970"]
[TimeControl "300"]
[EndTime "15:41:04 PDT"]
[Termination "updatedopenings2024 won by resignation"]

1. d4 {[%clk 0:04:58]} 1... c6 {[%clk 0:04:59.9]} 2. Bf4 {[%clk 0:04:54.1]} 2...
d5 {[%clk 0:04:59.8]} 3. Nf3 {[%clk 0:04:52.1]} 3... Nf6 {[%clk 0:04:59.1]} 4.
e3 {[%clk 0:04:51]} 4... Bg4 {[%clk 0:04:58.4]} 5. Nbd2 {[%clk 0:04:40]} 5... e6
{[%clk 0:04:57.3]} 6. h3 {[%clk 0:04:37.7]} 6... Bxf3 {[%clk 0:04:55.6]} 7. Nxf3
{[%clk 0:04:36.1]} 7... Bd6 {[%clk 0:04:55.5]} 8. Bxd6 {[%clk 0:04:27.2]} 8...
Qxd6 {[%clk 0:04:55.4]} 9. c4 {[%clk 0:04:24.3]} 9... Nbd7 {[%clk 0:04:54.2]}
10. Qb3 {[%clk 0:04:18.2]} 10... O-O {[%clk 0:04:51.1]} 11. cxd5 {[%clk
0:04:09.8]} 11... cxd5 {[%clk 0:04:51]} 12. Bd3 {[%clk 0:04:08.4]} 12... a6
{[%clk 0:04:41.3]} 13. O-O {[%clk 0:04:05.5]} 13... b5 {[%clk 0:04:40.6]} 14.
Rfc1 {[%clk 0:04:03.2]} 14... Rfc8 {[%clk 0:04:38.3]} 15. a4 {[%clk 0:04:00.3]}
15... b4 {[%clk 0:04:36.9]} 16. Rxc8+ {[%clk 0:02:44.8]} 16... Rxc8 {[%clk
0:04:36.8]} 17. Kf1 {[%clk 0:02:15.6]} 17... a5 {[%clk 0:04:28.4]} 18. Ke2
{[%clk 0:02:07.2]} 18... g6 {[%clk 0:04:25.1]} 19. Kd2 {[%clk 0:02:04.2]} 19...
Nb6 {[%clk 0:04:23.8]} 20. Rc1 {[%clk 0:02:00.4]} 20... Rxc1 {[%clk 0:04:22.6]}
21. Kxc1 {[%clk 0:02:00.3]} 21... Qc6+ {[%clk 0:04:22]} 22. Kd2 {[%clk
0:01:55.9]} 22... Nxa4 {[%clk 0:04:13.2]} 23. Ne5 {[%clk 0:01:41.5]} 23... Qe8
{[%clk 0:04:11.8]} 24. Bc2 {[%clk 0:01:29.9]} 24... Nb6 {[%clk 0:04:09.9]} 25.
Qa2 {[%clk 0:01:17.7]} 25... a4 {[%clk 0:04:07.4]} 26. f4 {[%clk 0:01:09.4]}
26... Nfd7 {[%clk 0:04:06]} 27. b3 {[%clk 0:01:00.8]} 27... Nxe5 {[%clk
0:04:04.4]} 28. fxe5 {[%clk 0:00:58.9]} 28... a3 {[%clk 0:04:04.2]} 29. e4
{[%clk 0:00:53.8]} 29... dxe4 {[%clk 0:04:02.4]} 30. Bxe4 {[%clk 0:00:53.7]}
30... Qd8 {[%clk 0:03:59.7]} 31. Qc2 {[%clk 0:00:45.5]} 31... Qxd4+ {[%clk
0:03:58.1]} 32. Bd3 {[%clk 0:00:42]} 32... Nd5 {[%clk 0:03:53.5]} 33. Qc8+
{[%clk 0:00:39.4]} 33... Kg7 {[%clk 0:03:52.1]} 0-1

[Event "Live Chess"]
[Site "Chess.com"]
[Date "2024.06.01"]
[Round "-"]
[White "KeithArkell"]
[Black "TedUdale"]
[Result "1-0"]
[WhiteElo "2411"]
[BlackElo "2104"]
[TimeControl "300"]
[EndTime "15:41:14 PDT"]
[Termination "KeithArkell won by resignation"]

1. d4 {[%clk 0:04:57.8]} 1... Nf6 {[%clk 0:04:59.1]} 2. Nf3 {[%clk 0:04:57.3]}
2... e6 {[%clk 0:04:58.5]} 3. c4 {[%clk 0:04:56.8]} 3... d5 {[%clk 0:04:57.6]}
4. cxd5 {[%clk 0:04:55.9]} 4... exd5 {[%clk 0:04:57.5]} 5. Nc3 {[%clk
0:04:55.4]} 5... c6 {[%clk 0:04:57]} 6. Qc2 {[%clk 0:04:54.2]} 6... Bd6 {[%clk
0:04:56.2]} 7. Bg5 {[%clk 0:04:53.2]} 7... h6 {[%clk 0:04:54.9]} 8. Bxf6 {[%clk
0:04:52.5]} 8... Qxf6 {[%clk 0:04:53.9]} 9. Nxd5 {[%clk 0:04:52]} 9... Qd8
{[%clk 0:04:29.5]} 10. Nc3 {[%clk 0:04:51.2]} 10... O-O {[%clk 0:04:28.3]} 11.
e3 {[%clk 0:04:50.6]} 11... Nd7 {[%clk 0:04:27]} 12. Bd3 {[%clk 0:04:49.5]}
12... Nf6 {[%clk 0:04:22.7]} 13. Bf5 {[%clk 0:04:48]} 13... b6 {[%clk
0:04:19.8]} 14. O-O {[%clk 0:04:46.5]} 14... c5 {[%clk 0:04:18.8]} 15. Bxc8
{[%clk 0:04:45.1]} 15... Rxc8 {[%clk 0:04:17.8]} 16. dxc5 {[%clk 0:04:44.4]}
16... Bxc5 {[%clk 0:04:17.1]} 17. Rad1 {[%clk 0:04:42.3]} 17... Qc7 {[%clk
0:04:15.3]} 18. Qa4 {[%clk 0:04:37]} 18... Rfd8 {[%clk 0:04:01.6]} 19. h3 {[%clk
0:04:36.1]} 19... g6 {[%clk 0:03:40.3]} 20. Rxd8+ {[%clk 0:04:29.8]} 20... Rxd8
{[%clk 0:03:39.3]} 21. Rd1 {[%clk 0:04:28.7]} 21... Rxd1+ {[%clk 0:03:38.1]} 22.
Qxd1 {[%clk 0:04:27.8]} 22... Kg7 {[%clk 0:03:36.8]} 23. Qd3 {[%clk 0:04:24.9]}
23... Bb4 {[%clk 0:03:33.5]} 24. Qd4 {[%clk 0:04:17.1]} 24... Bxc3 {[%clk
0:03:30.2]} 25. bxc3 {[%clk 0:04:17]} 25... b5 {[%clk 0:03:22.3]} 26. Ne5 {[%clk
0:04:15.4]} 26... Qe7 {[%clk 0:03:00.5]} 27. Ng4 {[%clk 0:04:12.1]} 27... h5
{[%clk 0:02:57.7]} 28. Nxf6 {[%clk 0:04:10.9]} 28... Qxf6 {[%clk 0:02:57.6]} 29.
Kf1 {[%clk 0:04:09.7]} 29... a5 {[%clk 0:02:53.7]} 30. Ke2 {[%clk 0:04:07.1]}
30... g5 {[%clk 0:02:53]} 31. Kd3 {[%clk 0:04:04.7]} 31... Kg6 {[%clk
0:02:52.2]} 32. Qxf6+ {[%clk 0:04:03.7]} 32... Kxf6 {[%clk 0:02:52.1]} 33. Kd4
{[%clk 0:04:00.6]} 33... Kf5 {[%clk 0:02:44.8]} 34. f3 {[%clk 0:03:54.5]} 34...
g4 {[%clk 0:02:43.2]} 35. hxg4+ {[%clk 0:03:52.6]} 35... hxg4 {[%clk 0:02:42.6]}
36. Kc5 {[%clk 0:03:51.8]} 36... b4 {[%clk 0:02:41.7]} 37. cxb4 {[%clk
0:03:50.6]} 37... axb4 {[%clk 0:02:41]} 38. Kxb4 {[%clk 0:03:50]} 1-0

[Event "Live Chess"]
[Site "Chess.com"]
[Date "2024.06.01"]
[Round "-"]
[White "DJ_Lambton"]
[Black "gmnorfolk"]
[Result "1-0"]
[WhiteElo "1781"]
[BlackElo "2088"]
[TimeControl "300"]
[EndTime "15:41:16 PDT"]
[Termination "DJ_Lambton won on time"]

1. c4 {[%clk 0:04:57.6]} 1... e5 {[%clk 0:04:58.3]} 2. g3 {[%clk 0:04:54.7]}
2... Nf6 {[%clk 0:04:57.5]} 3. Bg2 {[%clk 0:04:53.8]} 3... c6 {[%clk 0:04:57]}
4. d4 {[%clk 0:04:52.2]} 4... e4 {[%clk 0:04:54.7]} 5. Nc3 {[%clk 0:04:50.9]}
5... d5 {[%clk 0:04:53.1]} 6. cxd5 {[%clk 0:04:50.4]} 6... cxd5 {[%clk 0:04:52]}
7. Bg5 {[%clk 0:04:50.1]} 7... Nbd7 {[%clk 0:04:49.5]} 8. e3 {[%clk 0:04:49]}
8... h6 {[%clk 0:04:46]} 9. Bxf6 {[%clk 0:04:47.5]} 9... Nxf6 {[%clk 0:04:45.2]}
10. Nge2 {[%clk 0:04:47.2]} 10... Bd6 {[%clk 0:04:39.8]} 11. O-O {[%clk
0:04:45.8]} 11... O-O {[%clk 0:04:31.6]} 12. Qb3 {[%clk 0:04:44.1]} 12... Be6
{[%clk 0:04:29.9]} 13. Rac1 {[%clk 0:04:42.4]} 13... Qd7 {[%clk 0:04:27.2]} 14.
Nb5 {[%clk 0:04:40.9]} 14... Bb8 {[%clk 0:04:20.1]} 15. Rc2 {[%clk 0:04:39.9]}
15... a6 {[%clk 0:04:18.4]} 16. Nbc3 {[%clk 0:04:32.4]} 16... b5 {[%clk
0:04:15.3]} 17. Rfc1 {[%clk 0:04:31]} 17... Bh3 {[%clk 0:04:12.8]} 18. Bh1
{[%clk 0:04:27.7]} 18... Rd8 {[%clk 0:03:57.6]} 19. a4 {[%clk 0:04:15.9]} 19...
Qf5 {[%clk 0:03:54.1]} 20. axb5 {[%clk 0:04:07.8]} 20... axb5 {[%clk 0:03:53.5]}
21. Nxb5 {[%clk 0:04:04]} 21... Ng4 {[%clk 0:03:50.9]} 22. Nec3 {[%clk
0:04:02.8]} 22... Ra6 {[%clk 0:03:35.9]} 23. Qb4 {[%clk 0:03:47]} 23... Rf6
{[%clk 0:03:25.8]} 24. Qe7 {[%clk 0:03:45.1]} 24... Rf8 {[%clk 0:03:16.6]} 25.
Nxd5 {[%clk 0:02:52.1]} 25... Qxd5 {[%clk 0:03:11.5]} 26. Rc8 {[%clk 0:02:50.9]}
26... Rxc8 {[%clk 0:02:38.1]} 27. Rxc8+ {[%clk 0:02:49.3]} 27... Kh7 {[%clk
0:02:34.9]} 28. Bxe4+ {[%clk 0:02:47.7]} 28... g6 {[%clk 0:02:26.5]} 29. Bxd5
{[%clk 0:02:44.5]} 29... Rxf2 {[%clk 0:02:24]} 30. Bc4 {[%clk 0:02:12.1]} 30...
Rg2+ {[%clk 0:01:38.3]} 31. Kf1 {[%clk 0:01:59.8]} 31... Rxh2+ {[%clk
0:01:28.7]} 32. Ke1 {[%clk 0:01:58.8]} 32... Bxg3+ {[%clk 0:01:24.3]} 33. Kd1
{[%clk 0:01:57.5]} 33... Nf2+ {[%clk 0:01:02.2]} 34. Kc1 {[%clk 0:01:53]} 34...
Rh1+ {[%clk 0:00:56.8]} 35. Kd2 {[%clk 0:01:42.3]} 35... Rd1+ {[%clk 0:00:27]}
36. Kc3 {[%clk 0:01:31.6]} 36... Rc1+ {[%clk 0:00:16.3]} 37. Kb3 {[%clk
0:01:30.5]} 37... h5 {[%clk 0:00:05.6]} 38. Qxf7+ {[%clk 0:01:26.3]} 1-0

[Event "Live Chess"]
[Site "Chess.com"]
[Date "2024.06.01"]
[Round "-"]
[White "Silverback7829"]
[Black "Ferrarifan27"]
[Result "0-1"]
[WhiteElo "902"]
[BlackElo "2110"]
[TimeControl "300"]
[EndTime "15:41:35 PDT"]
[Termination "Ferrarifan27 won on time"]

1. d4 {[%clk 0:04:58.3]} 1... Nf6 {[%clk 0:04:33.9]} 2. Nf3 {[%clk 0:04:56.4]}
2... e6 {[%clk 0:04:26.2]} 3. e3 {[%clk 0:04:51.9]} 3... d5 {[%clk 0:04:25.1]}
4. Bb5+ {[%clk 0:04:48.8]} 4... c6 {[%clk 0:04:23]} 5. Bd3 {[%clk 0:04:44.9]}
5... b6 {[%clk 0:04:17]} 6. c4 {[%clk 0:04:40.5]} 6... Ba6 {[%clk 0:04:14.2]} 7.
cxd5 {[%clk 0:04:33.2]} 7... exd5 {[%clk 0:04:13.3]} 8. Bxa6 {[%clk 0:04:30]}
8... Nxa6 {[%clk 0:04:10.7]} 9. Ne5 {[%clk 0:04:21.5]} 9... Bb4+ {[%clk
0:04:06.9]} 10. Bd2 {[%clk 0:04:15.1]} 10... Bxd2+ {[%clk 0:04:05.7]} 11. Qxd2
{[%clk 0:04:13]} 11... Rc8 {[%clk 0:04:03.6]} 12. Nc3 {[%clk 0:03:53.1]} 12...
O-O {[%clk 0:03:59.9]} 13. O-O {[%clk 0:03:49.9]} 13... Re8 {[%clk 0:03:51.3]}
14. Rae1 {[%clk 0:03:39.4]} 14... Nd7 {[%clk 0:03:49.8]} 15. Nxd7 {[%clk
0:03:32.9]} 15... Qxd7 {[%clk 0:03:48.6]} 16. Qe2 {[%clk 0:03:24.5]} 16... Nc7
{[%clk 0:03:44.7]} 17. e4 {[%clk 0:03:11.5]} 17... dxe4 {[%clk 0:03:41.4]} 18.
Nxe4 {[%clk 0:03:08.2]} 18... f5 {[%clk 0:03:39.4]} 19. Qc4+ {[%clk 0:02:50.7]}
19... Nd5 {[%clk 0:03:31.1]} 20. Nd2 {[%clk 0:02:40.2]} 20... Kh8 {[%clk
0:03:23.3]} 21. Rxe8+ {[%clk 0:02:34.4]} 21... Rxe8 {[%clk 0:03:22.1]} 22. Nf3
{[%clk 0:02:18.6]} 22... Nf4 {[%clk 0:03:09]} 23. Ne5 {[%clk 0:02:09]} 23... Qd5
{[%clk 0:02:49.1]} 24. Qxd5 {[%clk 0:01:57.6]} 24... cxd5 {[%clk 0:02:42.5]} 25.
Nc6 {[%clk 0:01:45.4]} 25... Rc8 {[%clk 0:02:36.4]} 26. Nxa7 {[%clk 0:01:41.2]}
26... Ra8 {[%clk 0:02:35.1]} 27. Nc6 {[%clk 0:01:34.8]} 27... Rxa2 {[%clk
0:02:33.7]} 28. h3 {[%clk 0:01:26.5]} 28... Rxb2 {[%clk 0:02:29.7]} 29. Re1
{[%clk 0:01:23.5]} 29... Kg8 {[%clk 0:02:27.2]} 30. Ne7+ {[%clk 0:01:16.4]}
30... Kf7 {[%clk 0:02:24.4]} 31. Nxf5 {[%clk 0:01:09.3]} 31... Re2 {[%clk
0:02:15.6]} 32. Rxe2 {[%clk 0:00:59.8]} 32... Nxe2+ {[%clk 0:02:14.4]} 33. Kf1
{[%clk 0:00:53.5]} 33... Nc3 {[%clk 0:02:13.4]} 34. Nd6+ {[%clk 0:00:47.6]}
34... Ke6 {[%clk 0:02:11.6]} 35. Ne8 {[%clk 0:00:40]} 35... g6 {[%clk
0:02:07.9]} 36. Ng7+ {[%clk 0:00:36.9]} 36... Kf7 {[%clk 0:02:04]} 37. Nf5
{[%clk 0:00:17.7]} 37... gxf5 {[%clk 0:02:02.1]} 38. g4 {[%clk 0:00:15.1]} 38...
fxg4 {[%clk 0:02:00.4]} 39. hxg4 {[%clk 0:00:13.2]} 39... Nb5 {[%clk 0:01:59.1]}
40. f3 {[%clk 0:00:07.6]} 40... Nxd4 {[%clk 0:01:57.9]} 41. f4 {[%clk
0:00:04.8]} 41... b5 {[%clk 0:01:52.5]} 42. Ke1 {[%clk 0:00:01.7]} 42... b4
{[%clk 0:01:51.3]} 0-1

[Event "Live Chess"]
[Site "Chess.com"]
[Date "2024.06.01"]
[Round "-"]
[White "StoreySniper"]
[Black "Rusty_Bridges"]
[Result "1-0"]
[WhiteElo "2534"]
[BlackElo "1521"]
[TimeControl "300"]
[EndTime "15:41:35 PDT"]
[Termination "StoreySniper won by resignation"]

1. e4 {[%clk 0:04:56]} 1... d6 {[%clk 0:04:51.4]} 2. d4 {[%clk 0:04:54.3]} 2...
Nf6 {[%clk 0:04:50.1]} 3. Nc3 {[%clk 0:04:53.1]} 3... Nbd7 {[%clk 0:04:49]} 4.
f4 {[%clk 0:04:51.4]} 4... e6 {[%clk 0:04:45.4]} 5. Nf3 {[%clk 0:04:50.1]} 5...
b6 {[%clk 0:04:42.8]} 6. e5 {[%clk 0:04:46.3]} 6... dxe5 {[%clk 0:04:41.2]} 7.
fxe5 {[%clk 0:04:45.3]} 7... Nd5 {[%clk 0:04:39.8]} 8. Nxd5 {[%clk 0:04:44]}
8... exd5 {[%clk 0:04:38.9]} 9. Bd3 {[%clk 0:04:42.9]} 9... Bb7 {[%clk
0:04:33.8]} 10. O-O {[%clk 0:04:41.7]} 10... c5 {[%clk 0:04:31.1]} 11. c3 {[%clk
0:04:38.4]} 11... c4 {[%clk 0:04:25.7]} 12. Bc2 {[%clk 0:04:35.7]} 12... Qc7
{[%clk 0:04:21.8]} 13. Ng5 {[%clk 0:04:33.8]} 13... O-O-O {[%clk 0:04:08]} 14.
Nxf7 {[%clk 0:04:30.6]} 14... Be7 {[%clk 0:04:05.8]} 1-0

[Event "Live Chess"]
[Site "Chess.com"]
[Date "2024.06.01"]
[Round "-"]
[White "TheSmoulderingMaster"]
[Black "WelshTiger"]
[Result "0-1"]
[WhiteElo "1727"]
[BlackElo "2485"]
[TimeControl "300"]
[EndTime "15:42:05 PDT"]
[Termination "WelshTiger won by resignation"]

1. e4 {[%clk 0:04:56.4]} 1... c5 {[%clk 0:04:58.5]} 2. Nf3 {[%clk 0:04:53.8]}
2... d6 {[%clk 0:04:57.8]} 3. d4 {[%clk 0:04:52.4]} 3... cxd4 {[%clk 0:04:57.2]}
4. Nxd4 {[%clk 0:04:50]} 4... Nf6 {[%clk 0:04:56.1]} 5. Nc3 {[%clk 0:04:47]}
5... Nc6 {[%clk 0:04:55.1]} 6. Be3 {[%clk 0:04:45.5]} 6... Ng4 {[%clk
0:04:53.4]} 7. Bg5 {[%clk 0:04:41.5]} 7... Qb6 {[%clk 0:04:51.5]} 8. Ncb5 {[%clk
0:04:35.1]} 8... a6 {[%clk 0:04:48]} 9. h3 {[%clk 0:04:33.3]} 9... axb5 {[%clk
0:04:44.8]} 10. hxg4 {[%clk 0:04:23.9]} 10... Qxd4 {[%clk 0:04:41.9]} 11. Qd2
{[%clk 0:04:15.7]} 0-1